[Event "Romanian Championship Open 2025"]
[Site "Craiova"]
[Date "2025.02.15"]
[Round "1.20"]
[White "Dobre, Claudiu-Cristian"]
[Black "Rosca, Mario-Andrei"]
[Result "1-0"]
[Annotator "ChessBase"]
[ECO "A50"]
[WhiteElo "2279"]
[BlackElo "1828"]
[PlyCount "65"]
[EventDate "2025.02.12"]
[EventCountry "ROU"]
[SourceTitle "playchess.com"]
[Source "ChessBase"]
[SourceQuality "1"]
[TimeControl "40/5400+30:900+30"]

1. c4 {[%emt 0:00:04]} b6 {[%emt 0:00:16]} 2. d4 {[%emt 0:00:25]} Nf6 {[%emt 0:00:19]} 3. Nc3 {[%emt 0:00:43]} Bb7 {[%emt 0:00:21]} 4. Qc2 {[%emt 0:04:35]} d5 {[%emt 0:03:10]} 5. cxd5 {[%emt 0:02:21]} Nxd5 {[%emt 0:00:11]} 6. e4 {[%emt 0:04:23]} Nxc3 {[%emt 0:01:18]} 7. bxc3 {[%emt 0:00:09]} g6 {[%emt 0:00:26]} 8. h4 {[%emt 0:05:32]} h5 {[%emt 0:05:08]} 9. Nf3 {[%emt 0:06:03]} Bg7 {[%emt 0:01:14]} 10. Rb1 {[%emt 0:21:40]} Nd7 {[%emt 0:05:45]} 11. Bg5 {[%emt 0:00:56]} Bf6 {[%emt 0:10:34]} 12. Bxf6 {[%emt 0:13:45]} exf6 {[%emt 0:01:32]} 13. Rh3 {[%emt 0:01:19]} Qe7 {[%emt 0:02:06]} 14. Nd2 {[%emt 0:02:15]} f5 {[%emt 0:11:24]} 15. e5 {[%emt 0:04:42]} O-O {[%emt 0:05:52]} 16. Be2 {[%emt 0:02:00]} f4 {[%emt 0:04:02]} 17. Kf1 {[%emt 0:02:04]} c5 {[%emt 0:01:47]} 18. Bf3 {[%emt 0:04:42]} Bxf3 {[%emt 0:01:25]} 19. Nxf3 {[%emt 0:00:07]} Rfd8 {[%emt 0:05:26]} 20. Qe4 {[%emt 0:02:17]} cxd4 {[%emt 0:00:24]} 21. cxd4 {[%emt 0:00:07]} Rac8 {[%emt 0:02:30]} 22. Qxf4 {[%emt 0:00:50]} Nf8 {[%emt 0:02:33]} 23. Qh6 {[%emt 0:06:44]} Qa3 {[%emt 0:07:11]} 24. Re1 {[%emt 0:00:43]} Rc2 {[%emt 0:02:24]} 25. e6 {[%emt 0:03:46]} fxe6 {[%emt 0:04:17]} 26. Rg3 {[%emt 0:01:31]} Qd3+ {[%emt 0:03:42]} 27. Kg1 {[%emt 0:00:06]} Qf5 {[%emt 0:01:41]} 28. Re5 {[%emt 0:01:38]} Qf6 {[%emt 0:05:00]} 29. Rxg6+ {[%emt 0:02:58]} Nxg6 {[%emt 0:01:09]} 30. Rg5 {[%emt 0:00:04]} Rc1+ {[%emt 0:00:17]} 31. Kh2 {[%emt 0:00:04]} Qf4+ {[%emt 0:00:22]} 32. g3 {[%emt 0:00:26]} Rh1+ {[%emt 0:07:27]} 33. Kg2 {[%emt 0:00:09]} 1-0

[Event "Romanian Championship Open 2025"]
[Site "Craiova"]
[Date "2025.02.15"]
[Round "1.21"]
[White "Sementov, Andrei"]
[Black "Manea, Alexandru"]
[Result "0-1"]
[Annotator "ChessBase"]
[ECO "B00"]
[WhiteElo "1821"]
[BlackElo "2272"]
[PlyCount "80"]
[EventDate "2025.02.12"]
[EventCountry "ROU"]
[SourceTitle "playchess.com"]
[Source "ChessBase"]
[SourceQuality "1"]
[TimeControl "40/5400+30:900+30"]

1. e4 {[%emt 0:00:10]} b6 {[%emt 0:00:20]} 2. d4 {[%emt 0:00:04]} Bb7 {[%emt 0:00:04]} 3. Bd3 {[%emt 0:01:29]} g6 {[%emt 0:00:11]} 4. Nf3 {[%emt 0:00:25]} Bg7 {[%emt 0:00:07]} 5. O-O {[%emt 0:00:28]} d6 {[%emt 0:00:08]} 6. c3 {[%emt 0:01:38]} Nd7 {[%emt 0:00:18]} 7. Nbd2 {[%emt 0:00:33]} e6 {[%emt 0:00:06]} 8. Re1 {[%emt 0:00:33]} Ne7 {[%emt 0:01:01]} 9. Nf1 {[%emt 0:00:23]} a6 {[%emt 0:00:06]} 10. Ng3 {[%emt 0:01:39]} O-O {[%emt 0:03:11]} 11. Bd2 {[%emt 0:12:06]} e5 {[%emt 0:07:45]} 12. dxe5 {[%emt 0:09:37]} Nxe5 {[%emt 0:02:15]} 13. Nxe5 {[%emt 0:02:06]} dxe5 {[%emt 0:00:41]} 14. Qc2 {[%emt 0:03:09]} Qd6 {[%emt 0:06:52]} 15. Rad1 {[%emt 0:12:50]} Qe6 {[%emt 0:02:42]} 16. b3 {[%emt 0:11:21]} h6 {[%emt 0:03:04]} 17. a4 {[%emt 0:08:04]} Qc6 {[%emt 0:04:53]} 18. Bf1 {[%emt 0:05:56]} Bc8 {[%emt 0:08:05]} 19. h3 {[%emt 0:01:05]} Be6 {[%emt 0:04:01]} 20. Bc1 {[%emt 0:03:35]} Rfe8 {[%emt 0:02:09]} 21. Ba3 {[%emt 0:01:03]} Bf8 {[%emt 0:01:31]} 22. Rd2 {[%emt 0:04:13]} h5 {[%emt 0:02:35]} 23. h4 {[%emt 0:00:59]} Bh6 {[%emt 0:08:46]} 24. Rd3 {[%emt 0:01:42]} Bg7 {[%emt 0:10:38]} 25. Red1 {[%emt 0:01:00]} Bf6 {[%emt 0:04:34]} 26. c4 {[%emt 0:03:14]} Bxh4 {[%emt 0:03:01]} 27. Be2 {[%emt 0:02:05]} Bg4 {[%emt 0:08:15]} 28. Bxg4 {[%emt 0:03:25]} hxg4 {[%emt 0:00:30]} 29. Qe2 {[%emt 0:05:33]} Qe6 {[%emt 0:00:11]} 30. Bxe7 {[%emt 0:00:38]} Bxe7 {[%emt 0:02:22]} 31. Rd5 {[%emt 0:02:55]} c6 {[%emt 0:02:22]} 32. Rd7 {[%emt 0:00:51]} Bc5 {[%emt 0:00:08]} 33. Qd3 {[%emt 0:00:46]} Bd4 {[%emt 0:00:15]} 34. Rb7 {[%emt 0:00:17]} c5 {[%emt 0:00:20]} 35. a5 {[%emt 0:01:02]} bxa5 {[%emt 0:00:10]} 36. Ne2 {[%emt 0:00:54]} Qc6 {[%emt 0:00:38]} 37. Nxd4 {[%emt 0:00:14]} cxd4 {[%emt 0:00:13]} 38. Rxf7 {[%emt 0:00:41]} Kxf7 {[%emt 0:00:04]} 39. Qe2 {[%emt 0:00:32]} Qe6 {[%emt 0:00:15]} 40. Qd2 {[%emt 0:00:00]} Rab8 {[%emt 0:00:00]} 0-1

[Event "Romanian Championship Open 2025"]
[Site "Craiova"]
[Date "2025.02.16"]
[Round "2.1"]
[White "Lupulescu, Constantin"]
[Black "Nastore, Pavel-Alexandru"]
[Result "1/2-1/2"]
[Annotator "ChessBase"]
[ECO "D31"]
[WhiteElo "2603"]
[BlackElo "2250"]
[PlyCount "75"]
[EventDate "2025.02.12"]
[EventCountry "ROU"]
[SourceTitle "playchess.com"]
[Source "ChessBase"]
[SourceQuality "1"]
[TimeControl "40/5400+30:900+30"]

1. d4 {[%emt 0:00:08]} d5 {[%emt 0:00:18]} 2. c4 {[%emt 0:00:06]} e6 {[%emt 0:00:07]} 3. Nc3 {[%emt 0:00:04]} Be7 {[%emt 0:00:08]} 4. cxd5 {[%emt 0:00:07]} exd5 {[%emt 0:00:04]} 5. Bf4 {[%emt 0:00:07]} c6 {[%emt 0:00:33]} 6. e3 {[%emt 0:00:07]} Bf5 {[%emt 0:00:12]} 7. g4 {[%emt 0:00:12]} Be6 {[%emt 0:00:09]} 8. h4 {[%emt 0:00:34]} Nd7 {[%emt 0:00:17]} 9. Qb3 {[%emt 0:00:31]} b5 {[%emt 0:04:09]} 10. g5 {[%emt 0:00:16]} h6 {[%emt 0:01:01]} 11. Nf3 {[%emt 0:00:16]} Bg4 {[%emt 0:00:48]} 12. Nh2 {[%emt 0:01:13]} Be6 {[%emt 0:11:59]} 13. Rg1 {[%emt 0:01:28]} hxg5 {[%emt 0:06:46]} 14. hxg5 {[%emt 0:00:11]} a5 {[%emt 0:06:42]} 15. Qc2 {[%emt 0:00:38]} a4 {[%emt 0:05:58]} 16. a3 {[%emt 0:09:07]} Qa5 {[%emt 0:20:17]} 17. Bd3 {[%emt 0:19:26]} Nb6 {[%emt 0:06:29]} 18. Ke2 {[%emt 0:09:06]} Nc4 {[%emt 0:10:13]} 19. Nf3 {[%emt 0:10:03]} g6 {[%emt 0:06:07]} 20. Ne5 {[%emt 0:05:37]} Nxe5 {[%emt 0:00:26]} 21. Bxe5 {[%emt 0:00:20]} Rh3 {[%emt 0:00:41]} 22. Rh1 {[%emt 0:22:23]} Bg4+ {[%emt 0:02:43]} 23. Kd2 {[%emt 0:00:04]} Kd7 {[%emt 0:04:08]} 24. Rxh3 {[%emt 0:05:53]} Bxh3 {[%emt 0:00:01]} 25. f4 {[%emt 0:03:56]} b4 {[%emt 0:05:59]} 26. axb4 {[%emt 0:00:04]} Bxb4 {[%emt 0:02:14]} 27. f5 {[%emt 0:03:06]} Ne7 {[%emt 0:02:12]} 28. fxg6 {[%emt 0:00:55]} fxg6 {[%emt 0:00:12]} 29. Bf6 {[%emt 0:01:19]} Nf5 {[%emt 0:02:23]} 30. Rh1 {[%emt 0:00:46]} Bg4 {[%emt 0:00:08]} 31. Rh7+ {[%emt 0:01:34]} Kc8 {[%emt 0:01:04]} 32. e4 {[%emt 0:01:21]} Nd6 {[%emt 0:01:22]} 33. exd5 {[%emt 0:02:32]} cxd5 {[%emt 0:00:33]} 34. Kc1 {[%emt 0:01:08]} Bxc3 {[%emt 0:00:15]} 35. bxc3 {[%emt 0:00:20]} a3 {[%emt 0:00:29]} 36. Rh8+ {[%emt 0:02:02]} Kd7 {[%emt 0:00:24]} 37. Rxa8 {[%emt 0:00:31]} Qxa8 {[%emt 0:00:04]} 38. Kb1 {[%emt 0:00:30]} 1/2-1/2

[Event "Romanian Championship Open 2025"]
[Site "Craiova"]
[Date "2025.02.16"]
[Round "2.2"]
[White "Gales, Randi-Ioan"]
[Black "Nisipeanu, Liviu-Dieter"]
[Result "0-1"]
[Annotator "ChessBase"]
[ECO "A59"]
[WhiteElo "2247"]
[BlackElo "2596"]
[PlyCount "80"]
[EventDate "2025.02.12"]
[EventCountry "ROU"]
[SourceTitle "playchess.com"]
[Source "ChessBase"]
[SourceQuality "1"]
[TimeControl "40/5400+30:900+30"]

1. d4 {[%emt 0:00:06]} Nf6 {[%emt 0:00:05]} 2. c4 {[%emt 0:00:04]} c5 {[%emt 0:00:35]} 3. d5 {[%emt 0:00:11]} b5 {[%emt 0:00:06]} 4. cxb5 {[%emt 0:01:21]} a6 {[%emt 0:00:05]} 5. bxa6 {[%emt 0:03:53]} Bxa6 {[%emt 0:00:18]} 6. Nc3 {[%emt 0:00:08]} g6 {[%emt 0:00:05]} 7. e4 {[%emt 0:00:18]} Bxf1 {[%emt 0:00:05]} 8. Kxf1 {[%emt 0:00:03]} d6 {[%emt 0:00:07]} 9. Nf3 {[%emt 0:00:21]} Bg7 {[%emt 0:00:05]} 10. g3 {[%emt 0:00:14]} O-O {[%emt 0:00:12]} 11. Kg2 {[%emt 0:00:06]} Na6 {[%emt 0:01:06]} 12. Qe2 {[%emt 0:09:34]} Qb6 {[%emt 0:03:10]} 13. Rd1 {[%emt 0:10:29]} Qb7 {[%emt 0:07:17]} 14. a4 {[%emt 0:03:29]} Nc7 {[%emt 0:06:45]} 15. Ra2 {[%emt 0:09:27]} Rfb8 {[%emt 0:00:54]} 16. Bf4 {[%emt 0:02:17]} Qb3 {[%emt 0:05:25]} 17. Rd2 {[%emt 0:13:58]} Nh5 {[%emt 0:12:09]} 18. Bg5 {[%emt 0:04:32]} Re8 {[%emt 0:07:05]} 19. Ra3 {[%emt 0:02:17]} Qb4 {[%emt 0:00:38]} 20. Na2 {[%emt 0:10:32]} Qb7 {[%emt 0:00:29]} 21. Qc4 {[%emt 0:01:57]} h6 {[%emt 0:05:55]} 22. Be3 {[%emt 0:00:18]} Reb8 {[%emt 0:00:07]} 23. e5 {[%emt 0:02:28]} dxe5 {[%emt 0:03:57]} 24. Bxc5 {[%emt 0:01:15]} e4 {[%emt 0:01:44]} 25. Qxe4 {[%emt 0:01:58]} Nf6 {[%emt 0:00:08]} 26. Qc4 {[%emt 0:04:06]} Ncxd5 {[%emt 0:02:59]} 27. b4 {[%emt 0:01:36]} e6 {[%emt 0:00:05]} 28. a5 {[%emt 0:02:28]} Rc8 {[%emt 0:03:05]} 29. a6 {[%emt 0:02:50]} Qc6 {[%emt 0:00:06]} 30. Rc2 {[%emt 0:00:54]} Nd7 {[%emt 0:01:18]} 31. a7 {[%emt 0:03:17]} Bf8 {[%emt 0:02:59]} 32. Ra5 {[%emt 0:01:23]} Rc7 {[%emt 0:09:29]} 33. Qe4 {[%emt 0:04:09]} Bxc5 {[%emt 0:03:16]} 34. bxc5 {[%emt 0:00:11]} Rcxa7 {[%emt 0:00:11]} 35. Rxa7 {[%emt 0:00:05]} Rxa7 {[%emt 0:00:04]} 36. Nc1 {[%emt 0:02:16]} Ra3 {[%emt 0:04:36]} 37. Rc4 {[%emt 0:02:34]} Rxf3 {[%emt 0:03:46]} 38. Kxf3 {[%emt 0:00:44]} f5 {[%emt 0:00:07]} 39. Qd4 {[%emt 0:01:37]} e5 {[%emt 0:00:29]} 40. Qb2 {[%emt 0:00:00]} Nc3+ {[%emt 0:00:00]} 0-1

[Event "Romanian Championship Open 2025"]
[Site "Craiova"]
[Date "2025.02.16"]
[Round "2.3"]
[White "Gavrilescu, David"]
[Black "Bonte, Andrei-Mihai"]
[Result "1-0"]
[Annotator "ChessBase"]
[ECO "C02"]
[WhiteElo "2543"]
[BlackElo "2237"]
[PlyCount "45"]
[EventDate "2025.02.12"]
[EventCountry "ROU"]
[SourceTitle "playchess.com"]
[Source "ChessBase"]
[SourceQuality "1"]
[TimeControl "40/5400+30:900+30"]

1. e4 {[%emt 0:00:18]} e6 {[%emt 0:00:16]} 2. d4 {[%emt 0:00:35]} d5 {[%emt 0:00:08]} 3. e5 {[%emt 0:00:30]} c5 {[%emt 0:00:15]} 4. c3 {[%emt 0:00:19]} Nc6 {[%emt 0:00:13]} 5. Nf3 {[%emt 0:00:35]} Qb6 {[%emt 0:00:27]} 6. Be2 {[%emt 0:00:39]} cxd4 {[%emt 0:01:55]} 7. cxd4 {[%emt 0:00:18]} Nh6 {[%emt 0:00:09]} 8. Bxh6 {[%emt 0:00:37]} Qxb2 {[%emt 0:00:12]} 9. Nbd2 {[%emt 0:00:32]} gxh6 {[%emt 0:00:07]} 10. O-O {[%emt 0:00:14]} Bd7 {[%emt 0:00:47]} 11. Nb3 {[%emt 0:02:09]} Rc8 {[%emt 0:12:12]} 12. Ne1 {[%emt 0:02:23]} Nb4 {[%emt 0:01:57]} 13. Rb1 {[%emt 0:07:10]} Qa3 {[%emt 0:06:26]} 14. Nc5 {[%emt 0:07:43]} Bxc5 {[%emt 0:08:19]} 15. dxc5 {[%emt 0:00:24]} Rxc5 {[%emt 0:11:11]} 16. Bh5 {[%emt 0:30:43]} a5 {[%emt 0:41:27]} 17. Qg4 {[%emt 0:20:08]} Qxa2 {[%emt 0:03:20]} 18. Nf3 {[%emt 0:00:38]} Rf8 {[%emt 0:04:42]} 19. Qg7 {[%emt 0:01:10]} Rc2 {[%emt 0:01:44]} 20. Ra1 {[%emt 0:10:19]} Qc4 {[%emt 0:00:05]} 21. Qxh6 {[%emt 0:02:04]} Qd3 {[%emt 0:04:24]} 22. Ng5 {[%emt 0:00:53]} Qf5 {[%emt 0:00:41]} 23. Nxh7 {[%emt 0:00:12]} 1-0

[Event "Romanian Championship Open 2025"]
[Site "Craiova"]
[Date "2025.02.16"]
[Round "2.4"]
[White "Negrean, Andrei"]
[Black "Parligras, Mircea-Emilian"]
[Result "1/2-1/2"]
[Annotator "ChessBase"]
[ECO "B92"]
[WhiteElo "2224"]
[BlackElo "2528"]
[PlyCount "55"]
[EventDate "2025.02.12"]
[EventCountry "ROU"]
[SourceTitle "playchess.com"]
[Source "ChessBase"]
[SourceQuality "1"]
[TimeControl "40/5400+30:900+30"]

1. e4 {[%emt 0:00:04]} c5 {[%emt 0:00:13]} 2. Nf3 {[%emt 0:00:14]} d6 {[%emt 0:00:08]} 3. d4 {[%emt 0:00:11]} cxd4 {[%emt 0:00:11]} 4. Nxd4 {[%emt 0:00:09]} Nf6 {[%emt 0:00:22]} 5. Nc3 {[%emt 0:00:11]} a6 {[%emt 0:00:17]} 6. Be2 {[%emt 0:00:15]} e5 {[%emt 0:00:21]} 7. Nb3 {[%emt 0:00:13]} Be7 {[%emt 0:00:18]} 8. O-O {[%emt 0:00:11]} O-O {[%emt 0:00:17]} 9. Kh1 {[%emt 0:00:17]} Nc6 {[%emt 0:01:11]} 10. f4 {[%emt 0:01:09]} Re8 {[%emt 0:00:44]} 11. a4 {[%emt 0:13:15]} h6 {[%emt 0:00:36]} 12. Be3 {[%emt 0:12:05]} exf4 {[%emt 0:00:39]} 13. Bxf4 {[%emt 0:01:57]} Bf8 {[%emt 0:01:09]} 14. Bc4 {[%emt 0:10:52]} Ne5 {[%emt 0:08:20]} 15. Bxe5 {[%emt 0:04:45]} Rxe5 {[%emt 0:01:52]} 16. Qd3 {[%emt 0:08:18]} Be6 {[%emt 0:10:22]} 17. Bxe6 {[%emt 0:05:31]} fxe6 {[%emt 0:03:56]} 18. Nd4 {[%emt 0:04:19]} Rc8 {[%emt 0:05:03]} 19. Rae1 {[%emt 0:09:16]} Qc7 {[%emt 0:17:42]} 20. Qg3 {[%emt 0:05:14]} Qc4 {[%emt 0:17:09]} 21. Rxf6 {[%emt 0:16:44]} Qxd4 {[%emt 0:00:20]} 22. Rxh6 {[%emt 0:02:37]} Qd2 {[%emt 0:01:34]} 23. Rh4 {[%emt 0:02:00]} Rg5 {[%emt 0:04:30]} 24. Rh8+ {[%emt 0:00:21]} Kxh8 {[%emt 0:01:26]} 25. Qh3+ {[%emt 0:00:02]} Kg8 {[%emt 0:03:27]} 26. Qxe6+ {[%emt 0:00:05]} Kh7 {[%emt 0:00:35]} 27. Qh3+ {[%emt 0:00:06]} Kg8 {[%emt 0:00:14]} 28. Qe6+ {[%emt 0:00:06]} 1/2-1/2

[Event "Romanian Championship Open 2025"]
[Site "Craiova"]
[Date "2025.02.16"]
[Round "2.5"]
[White "Jianu, Vlad-Cristian"]
[Black "Daianu, Cristian-Clement"]
[Result "1-0"]
[Annotator "ChessBase"]
[ECO "E60"]
[WhiteElo "2467"]
[BlackElo "2214"]
[PlyCount "83"]
[EventDate "2025.02.12"]
[EventCountry "ROU"]
[SourceTitle "playchess.com"]
[Source "ChessBase"]
[SourceQuality "1"]
[TimeControl "40/5400+30:900+30"]

1. d4 {[%emt 0:00:03]} Nf6 {[%emt 0:00:12]} 2. Nf3 {[%emt 0:00:10]} g6 {[%emt 0:00:20]} 3. c4 {[%emt 0:00:10]} Bg7 {[%emt 0:00:15]} 4. e3 {[%emt 0:00:08]} O-O {[%emt 0:08:19]} 5. Be2 {[%emt 0:00:09]} c5 {[%emt 0:08:55]} 6. dxc5 {[%emt 0:00:11]} Qc7 {[%emt 0:09:17]} 7. a3 {[%emt 0:07:30]} Qxc5 {[%emt 0:12:08]} 8. b4 {[%emt 0:00:36]} Qc7 {[%emt 0:00:04]} 9. Bb2 {[%emt 0:00:05]} b6 {[%emt 0:00:13]} 10. O-O {[%emt 0:01:16]} Bb7 {[%emt 0:00:22]} 11. Nc3 {[%emt 0:07:39]} d6 {[%emt 0:01:55]} 12. Rc1 {[%emt 0:05:17]} Nbd7 {[%emt 0:05:33]} 13. Qb3 {[%emt 0:05:36]} Rac8 {[%emt 0:08:08]} 14. Rfd1 {[%emt 0:20:58]} Qb8 {[%emt 0:08:24]} 15. Nd4 {[%emt 0:01:36]} Qa8 {[%emt 0:11:04]} 16. Bf1 {[%emt 0:00:31]} Ne5 {[%emt 0:02:22]} 17. Ndb5 {[%emt 0:24:14]} a6 {[%emt 0:07:15]} 18. Nd4 {[%emt 0:00:04]} d5 {[%emt 0:03:10]} 19. cxd5 {[%emt 0:01:08]} Nxd5 {[%emt 0:00:16]} 20. Na4 {[%emt 0:03:56]} Rcd8 {[%emt 0:10:04]} 21. b5 {[%emt 0:03:37]} axb5 {[%emt 0:01:18]} 22. Nxb5 {[%emt 0:08:14]} Qb8 {[%emt 0:00:24]} 23. h3 {[%emt 0:03:45]} e6 {[%emt 0:00:42]} 24. Bd4 {[%emt 0:01:12]} Nd7 {[%emt 0:01:04]} 25. Bxg7 {[%emt 0:02:21]} Kxg7 {[%emt 0:00:08]} 26. Nbc3 {[%emt 0:01:11]} N7f6 {[%emt 0:00:26]} 27. Nxd5 {[%emt 0:01:04]} Bxd5 {[%emt 0:00:23]} 28. Qb4 {[%emt 0:00:53]} Qa7 {[%emt 0:01:09]} 29. Rb1 {[%emt 0:00:35]} Be4 {[%emt 0:00:19]} 30. Rxd8 {[%emt 0:00:17]} Rxd8 {[%emt 0:00:12]} 31. Rc1 {[%emt 0:00:05]} Ra8 {[%emt 0:00:49]} 32. Bb5 {[%emt 0:00:47]} Bd5 {[%emt 0:00:45]} 33. Qd4 {[%emt 0:00:33]} Qe7 {[%emt 0:00:29]} 34. Nxb6 {[%emt 0:00:57]} Qxa3 {[%emt 0:00:28]} 35. Rd1 {[%emt 0:00:22]} Ra7 {[%emt 0:00:30]} 36. Nd7 {[%emt 0:00:13]} Rxd7 {[%emt 0:00:29]} 37. Bxd7 {[%emt 0:00:05]} Qa8 {[%emt 0:00:20]} 38. f3 {[%emt 0:00:38]} Qb8 {[%emt 0:00:46]} 39. Ba4 {[%emt 0:00:58]} e5 {[%emt 0:00:30]} 40. Qc5 {[%emt 0:00:00]} Qa8 {[%emt 0:00:00]} 41. Bc2 {[%emt 0:02:13]} Qa2 {[%emt 0:03:18]} 42. Qc3 {[%emt 0:07:51]} 1-0

[Event "Romanian Championship Open 2025"]
[Site "Craiova"]
[Date "2025.02.16"]
[Round "2.6"]
[White "Magold, Filip"]
[Black "Tanasie, Cosmin"]
[Result "1/2-1/2"]
[Annotator "ChessBase"]
[ECO "A44"]
[WhiteElo "2431"]
[BlackElo "2198"]
[PlyCount "49"]
[EventDate "2025.02.12"]
[EventCountry "ROU"]
[SourceTitle "playchess.com"]
[Source "ChessBase"]
[SourceQuality "1"]
[TimeControl "40/5400+30:900+30"]

1. d4 {[%emt 0:00:34]} c5 {[%emt 0:00:07]} 2. d5 {[%emt 0:00:04]} e5 {[%emt 0:00:03]} 3. e4 {[%emt 0:00:03]} d6 {[%emt 0:00:02]} 4. Nc3 {[%emt 0:00:03]} Be7 {[%emt 0:00:24]} 5. f4 {[%emt 0:00:03]} exf4 {[%emt 0:01:51]} 6. Bxf4 {[%emt 0:00:04]} Bg5 {[%emt 0:03:11]} 7. Bb5+ {[%emt 0:12:55]} Kf8 {[%emt 0:00:32]} 8. Bg3 {[%emt 0:01:35]} Bh4 {[%emt 0:01:22]} 9. Qf3 {[%emt 0:01:14]} a6 {[%emt 0:09:02]} 10. Bd3 {[%emt 0:01:27]} Qg5 {[%emt 0:04:30]} 11. Bxh4 {[%emt 0:13:53]} Qxh4+ {[%emt 0:00:01]} 12. g3 {[%emt 0:00:08]} Qf6 {[%emt 0:00:33]} 13. Qf4 {[%emt 0:01:40]} Nd7 {[%emt 0:03:52]} 14. Nf3 {[%emt 0:00:43]} Ne7 {[%emt 0:01:29]} 15. Qxf6 {[%emt 0:10:45]} Nxf6 {[%emt 0:00:12]} 16. Nd2 {[%emt 0:00:46]} Ng6 {[%emt 0:03:29]} 17. Nc4 {[%emt 0:05:26]} Ke7 {[%emt 0:00:16]} 18. a4 {[%emt 0:00:06]} Nd7 {[%emt 0:02:18]} 19. Nd1 {[%emt 0:00:24]} Nge5 {[%emt 0:00:55]} 20. Nde3 {[%emt 0:00:20]} Nxc4 {[%emt 0:04:06]} 21. Nf5+ {[%emt 0:02:15]} Kd8 {[%emt 0:00:54]} 22. Bxc4 {[%emt 0:00:07]} Ne5 {[%emt 0:00:04]} 23. Ne3 {[%emt 0:07:37]} Re8 {[%emt 0:00:28]} 24. O-O {[%emt 0:06:26]} Bd7 {[%emt 0:03:08]} 25. a5 {[%emt 0:01:54]} 1/2-1/2

[Event "Romanian Championship Open 2025"]
[Site "Craiova"]
[Date "2025.02.16"]
[Round "2.7"]
[White "Sava, Robert-Gabriel"]
[Black "Secheres, Adrian-Simion"]
[Result "0-1"]
[Annotator "ChessBase"]
[ECO "E94"]
[WhiteElo "2183"]
[BlackElo "2350"]
[PlyCount "118"]
[EventDate "2025.02.12"]
[EventCountry "ROU"]
[SourceTitle "playchess.com"]
[Source "ChessBase"]
[SourceQuality "1"]
[TimeControl "40/5400+30:900+30"]

1. d4 {[%emt 0:00:05]} Nf6 {[%emt 0:00:23]} 2. c4 {[%emt 0:00:14]} g6 {[%emt 0:00:32]} 3. Nc3 {[%emt 0:00:23]} Bg7 {[%emt 0:00:22]} 4. e4 {[%emt 0:00:27]} d6 {[%emt 0:00:36]} 5. Nf3 {[%emt 0:00:31]} O-O {[%emt 0:00:56]} 6. Be2 {[%emt 0:00:12]} Na6 {[%emt 0:01:57]} 7. O-O {[%emt 0:02:24]} e5 {[%emt 0:01:13]} 8. Bg5 {[%emt 0:04:45]} h6 {[%emt 0:03:36]} 9. Bxf6 {[%emt 0:18:50]} Qxf6 {[%emt 0:00:56]} 10. c5 {[%emt 0:08:41]} exd4 {[%emt 0:11:06]} 11. Nd5 {[%emt 0:00:17]} Qd8 {[%emt 0:00:17]} 12. Bxa6 {[%emt 0:00:30]} bxa6 {[%emt 0:00:25]} 13. Nxd4 {[%emt 0:01:39]} dxc5 {[%emt 0:07:57]} 14. Nc6 {[%emt 0:00:26]} Qd6 {[%emt 0:02:40]} 15. e5 {[%emt 0:10:07]} Qe6 {[%emt 0:06:02]} 16. f4 {[%emt 0:14:55]} Kh8 {[%emt 0:05:06]} 17. Nde7 {[%emt 0:08:56]} Bd7 {[%emt 0:12:39]} 18. Qf3 {[%emt 0:05:38]} Rae8 {[%emt 0:01:44]} 19. Rfd1 {[%emt 0:01:36]} Rxe7 {[%emt 0:01:29]} 20. Nxe7 {[%emt 0:00:10]} Qxe7 {[%emt 0:00:05]} 21. Rac1 {[%emt 0:00:09]} Be6 {[%emt 0:06:35]} 22. Qc6 {[%emt 0:01:37]} c4 {[%emt 0:05:14]} 23. b3 {[%emt 0:01:16]} cxb3 {[%emt 0:04:26]} 24. axb3 {[%emt 0:00:47]} Qb4 {[%emt 0:00:21]} 25. g3 {[%emt 0:03:37]} Qxb3 {[%emt 0:00:44]} 26. Qc3 {[%emt 0:03:00]} Qb6+ {[%emt 0:01:58]} 27. Kg2 {[%emt 0:00:34]} Qb7+ {[%emt 0:03:41]} 28. Qc6 {[%emt 0:01:19]} Qb2+ {[%emt 0:00:27]} 29. Rc2 {[%emt 0:00:56]} Qb3 {[%emt 0:00:44]} 30. Rdd2 {[%emt 0:03:45]} a5 {[%emt 0:04:08]} 31. Rc3 {[%emt 0:00:47]} Qb4 {[%emt 0:01:08]} 32. Qxc7 {[%emt 0:00:24]} Qe4+ {[%emt 0:02:24]} 33. Kf2 {[%emt 0:00:58]} Qh1 {[%emt 0:03:59]} 34. Ke3 {[%emt 0:01:08]} Bg4 {[%emt 0:02:14]} 35. Rcc2 {[%emt 0:04:04]} Qg1+ {[%emt 0:01:17]} 36. Rf2 {[%emt 0:00:10]} Rc8 {[%emt 0:01:47]} 37. Qxc8+ {[%emt 0:00:07]} Bxc8 {[%emt 0:00:04]} 38. Rxc8+ {[%emt 0:00:07]} Kh7 {[%emt 0:00:04]} 39. Rc7 {[%emt 0:00:10]} Qb1 {[%emt 0:00:29]} 40. Kf3 {[%emt 0:00:00]} Qb3+ {[%emt 0:00:00]} 41. Kg2 {[%emt 0:00:48]} Qd5+ {[%emt 0:02:44]} 42. Kh3 {[%emt 0:00:38]} a4 {[%emt 0:01:20]} 43. Rfc2 {[%emt 0:00:21]} a3 {[%emt 0:06:45]} 44. Rxa7 {[%emt 0:01:29]} Qe6+ {[%emt 0:00:54]} 45. Kg2 {[%emt 0:00:10]} Qb3 {[%emt 0:00:26]} 46. Rc5 {[%emt 0:01:08]} Bf8 {[%emt 0:01:59]} 47. Rca5 {[%emt 0:00:13]} Qc2+ {[%emt 0:02:23]} 48. Kh3 {[%emt 0:00:23]} Qf5+ {[%emt 0:00:33]} 49. Kg2 {[%emt 0:00:05]} g5 {[%emt 0:03:26]} 50. e6 {[%emt 0:06:20]} Qe4+ {[%emt 0:00:42]} 51. Kf1 {[%emt 0:01:17]} Qf3+ {[%emt 0:01:50]} 52. Kg1 {[%emt 0:00:35]} Bc5+ {[%emt 0:00:23]} 53. Rxc5 {[%emt 0:00:04]} Qe3+ {[%emt 0:00:04]} 54. Kg2 {[%emt 0:00:03]} Qxc5 {[%emt 0:00:04]} 55. e7 {[%emt 0:00:08]} Qc6+ {[%emt 0:00:47]} 56. Kf2 {[%emt 0:00:18]} Qe6 {[%emt 0:03:46]} 57. fxg5 {[%emt 0:00:20]} hxg5 {[%emt 0:00:01]} 58. g4 {[%emt 0:14:29]} a2 {[%emt 0:01:17]} 59. h3 {[%emt 0:00:00]} Qb6+ {[%emt 0:00:19]} 0-1